[Event "ROU-ch Men 2018"]
[Site "Olanesti"]
[Date "2018.05.17"]
[Round "4"]
[White "Daianu, Cristian-Clement"]
[Black "Vasiesiu, Victor"]
[Result "1-0"]
[ECO "B49"]
[WhiteElo "2150"]
[BlackElo "2327"]
[Annotator "NA"]
[PlyCount "96"]
[EventDate "2018.??.??"]
[EventType "swiss"]
[EventCountry "ROU"]
[SourceTitle "playchess.com"]
[Source "ChessBase"]
[SourceQuality "1"]
[TimeControl "40/5400+30:1800+30"]

1. e4 {[%emt 0:06:18]} c5 {[%emt 0:00:05]} 2. Nf3 {[%emt 0:00:11]} e6 {[%emt 0:00:06]} 3. d4 {[%emt 0:00:05]} cxd4 {[%emt 0:00:06]} 4. Nxd4 {[%emt 0:00:03]} Nc6 {[%emt 0:00:07]} 5. Nc3 {[%emt 0:00:32]} Qc7 {[%emt 0:00:07]} 6. Be3 {[%emt 0:04:10]} a6 {[%emt 0:00:07]} 7. Be2 {[%emt 0:00:20]} Nf6 {[%emt 0:02:43]} 8. a3 {[%emt 0:03:51]} Be7 {[%emt 0:01:18]} 9. O-O {[%emt 0:03:13]} O-O 10. f4 {[%emt 0:07:07]} d6 {[%emt 0:00:15]} 11. Kh1 {[%emt 0:10:04]} Bd7 {[%emt 0:04:45]} 12. Qe1 {[%emt 0:02:14] LiveBook: 25 Games} Rfe8 {[%emt 0:33:19] B48: Sicilian: Taimanov: 5 Nc3 Qc7 6 Be3 a6 without Be2} (12... Rac8 13. Qg3 d5 14. e5 Nxd4 15. Bxd4 Ne4 16. Nxe4 dxe4 17. c3 b5 18. Qe3 Qb7 19. Bd1 g6 20. Bc2 {1-0 (53) Nestorovic,N (2447)-Miljkovic,M (2485) Palic 2014}) 13. Qg3 {[%emt 0:05:54]} Bf8 {[%emt 0:00:51]} 14. Bd3 {[%emt 0:15:47]} g6 {[%emt 0:03:48]} 15. f5 $146 {[%emt 0:07:12]} ({Predecessor:} 15. Rae1 Bg7 16. Nxc6 Bxc6 17. Qh4 b5 18. Bd4 e5 19. fxe5 dxe5 20. Be3 Nh5 {0-1 (63) Nilsson,N (2218)-Palo,D (2325) Copenhagen 2001}) 15... Bg7 {[%emt 0:01:43]} 16. fxg6 {[%emt 0:13:35]} fxg6 {[%emt 0:01:01]} 17. Nf3 {[%emt 0:00:11]} Rac8 {[%emt 0:15:48]} 18. Qh4 {[%emt 0:02:31]} Rf8 $14 {[%emt 0:03:09]} 19. Bh6 {[%emt 0:06:07]} Bxh6 {[%emt 0:11:45]} 20. Qxh6 {[%emt 0:00:07]} Ng4 {[%emt 0:00:10]} 21. Qh4 {[%emt 0:03:20]} Nce5 {[%emt 0:00:10]} 22. Nxe5 {[%emt 0:02:31]} Nxe5 {[%emt 0:00:04]} 23. Ne2 {[%emt 0:03:49]} Qd8 {[%emt 0:06:07]} 24. Rxf8+ {[%emt 0:02:00]} Qxf8 {[%emt 0:00:05]} 25. Ng3 {[%emt 0:00:37]} Qg7 {[%emt 0:04:23]} 26. Rf1 {[%emt 0:00:16]} Rf8 {[%emt 0:03:16]} 27. h3 {[%emt 0:00:32]} Rxf1+ {[%emt 0:02:04]} 28. Nxf1 {[%emt 0:00:11]} Qf8 {[%emt 0:00:47]} 29. Ne3 {[%emt 0:00:34]} Kg7 {[%emt 0:02:46]} 30. Ng4 {[%emt 0:00:47]} Nxg4 {[%emt 0:00:41]} 31. Qxg4 {[%emt 0:00:02]} Qf6 {[%emt 0:00:20]} 32. Qg3 {[%emt 0:00:05]} e5 {[%emt 0:01:01]} 33. Qe3 {[%emt 0:00:38]} h5 {[%emt 0:01:10]} 34. Kg1 {[%emt 0:00:44]} g5 {[%emt 0:01:18]} 35. Qb6 {[%emt 0:00:39]} Bc6 {[%emt 0:00:07]} 36. Qc7+ {[%emt 0:00:22]} Kh6 {[%emt 0:00:22]} 37. Qc8 {[%emt 0:00:53]} d5 {[%emt 0:01:39]} 38. exd5 {[%emt 0:00:09]} Bxd5 {[%emt 0:00:10]} 39. Qd7 {[%emt 0:00:30]} Bg8 {[%emt 0:01:46]} 40. Qxb7 {[%emt 0:00:00]} a5 {[%emt 0:00:08]} 41. Qa6 {[%emt 0:04:41]} Qxa6 {[%emt 0:00:08]} 42. Bxa6 {[%emt 0:00:02]} Kg6 {[%emt 0:01:47]} 43. b4 {[%emt 0:03:09]} axb4 {[%emt 0:00:05]} 44. axb4 {[%emt 0:00:03]} Kf6 {[%emt 0:00:06]} 45. Be2 {[%emt 0:00:27]} h4 {[%emt 0:00:07]} 46. c4 {[%emt 0:00:34]} e4 {[%emt 0:04:22]} 47. Kf2 {[%emt 0:00:26]} Ke5 {[%emt 0:00:06]} 48. Ke3 {[%emt 0:00:10]} Bf7 {[%emt 0:00:37] Kxe4+} 1-0

[Event "ROU-ch Men 2018"]
[Site "Olanesti"]
[Date "2018.05.17"]
[Round "4"]
[White "Pribeanu, Mihail-Dacian"]
[Black "Berechet, Stefan-Mario"]
[Result "1-0"]
[ECO "B23"]
[WhiteElo "2119"]
[BlackElo "1879"]
[Annotator "NA"]
[PlyCount "109"]
[EventDate "2018.??.??"]
[EventType "swiss"]
[EventCountry "ROU"]
[SourceTitle "playchess.com"]
[Source "ChessBase"]
[SourceQuality "1"]
[TimeControl "40/5400+30:1800+30"]

1. e4 {[%emt 0:04:54]} c5 {[%emt 0:01:00]} 2. Nc3 Nc6 {[%emt 0:00:10]} 3. f4 {[%emt 0:01:13]} g6 {[%emt 0:01:02]} 4. g3 Bg7 {[%emt 0:00:16]} 5. Bg2 {[%emt 0:00:47]} d6 {[%emt 0:00:24]} 6. d3 {[%emt 0:01:32]} e6 {[%emt 0:02:11]} 7. Nf3 {[%emt 0:00:17]} Nge7 {[%emt 0:00:14]} 8. O-O {[%emt 0:01:37]} O-O {[%emt 0:00:29]} 9. Be3 {[%emt 0:00:39]} Nd4 {[%emt 0:06:09]} 10. Rb1 Nec6 {[%emt 0:00:54]} 11. Ne2 {[%emt 0:01:08]} Nxe2+ {[%emt 0:00:53] B25: Closed Sicilian: 3 g3, lines without early Be3} (11... b6 12. c3 Nxe2+ 13. Qxe2 Ba6 14. b4 Bb7 15. Rfc1 cxb4 16. cxb4 Rc8 17. a4 Qd7 18. Qa2 Ne7 19. b5 Rxc1+ 20. Rxc1 {½-½ (66) Pallardo Lozoya,J (2360)-Pena Gomez,M (2412) Badajoz 2013}) 12. Qxe2 {[%emt 0:00:33]} Qe7 {[%emt 0:01:26]} 13. c3 {[%emt 0:03:42]} e5 {[%emt 0:00:55]} 14. f5 $146 {[%emt 0:04:58]} ({Predecessor:} 14. h3 Be6 15. a3 h6 16. g4 exf4 17. Bxf4 Rad8 18. Rbe1 Rfe8 19. Qf2 {½-½ (43) Garcia,A-Santacruz,F San Pedro de Jujuy 1981}) 14... gxf5 {[%emt 0:00:31]} 15. Qd2 a5 {[%emt 0:04:33]} 16. Bh6 {[%emt 0:01:35]} f6 {[%emt 0:00:34]} 17. Nh4 {[%emt 0:01:05]} fxe4 {[%emt 0:04:41]} 18. dxe4 {[%emt 0:00:25]} Be6 {[%emt 0:02:07]} 19. Bxg7 {[%emt 0:06:04]} Kxg7 {[%emt 0:00:13]} 20. Rf5 {[%emt 0:00:33]} Qf7 {[%emt 0:03:59]} 21. Rf2 Rad8 {[%emt 0:00:17]} 22. Rbf1 {[%emt 0:01:08]} Qh5 {[%emt 0:04:19]} 23. Bf3 {[%emt 0:12:22]} Qg5 {[%emt 0:01:02]} 24. Qc2 {[%emt 0:00:54]} Ne7 {[%emt 0:03:34]} 25. Qa4 b6 {[%emt 0:00:37]} 26. Qb5 {[%emt 0:01:14]} Rb8 {[%emt 0:01:15]} 27. Rd1 {[%emt 0:01:05]} Rfd8 {[%emt 0:00:51]} 28. Rfd2 Qe3+ {[%emt 0:06:12]} 29. Kg2 {[%emt 0:01:51]} Bd7 {[%emt 0:02:19]} ({But not} 29... Bxa2 $6 30. Rxd6 Rxd6 31. Rxd6 $18) 30. Qf1 {[%emt 0:05:35]} Nc8 {[%emt 0:03:14] [#]} 31. Re2 $2 {[%emt 0:00:26]} (31. Rxd6 $1 $16 Nxd6 32. Rxd6) 31... Qg5 {[%emt 0:00:31]} 32. Rf2 $11 {[%emt 0:01:24]} Rf8 {[%emt 0:02:12]} 33. Be2 {[%emt 0:04:12]} b5 {[%emt 0:07:15]} 34. Kg1 {[%emt 0:00:34]} Rb6 {[%emt 0:00:28]} 35. Bf3 {[%emt 0:00:34]} Ne7 {[%emt 0:01:02]} 36. Rfd2 {[%emt 0:02:22]} Qe3+ {[%emt 0:00:30]} 37. Kh1 {[%emt 0:01:26]} Nc8 {[%emt 0:00:34]} 38. Bg2 {[%emt 0:00:36]} Qg5 {[%emt 0:03:48]} 39. Bh3 {[%emt 0:00:00]} Bg4 {[%emt 0:12:50]} 40. Bxg4 {[%emt 0:00:00]} Qxg4 41. Nf5+ {[%emt 0:04:37]} Kh8 {[%emt 0:00:30]} 42. Qg2 {[%emt 0:00:51]} Rd8 {[%emt 0:00:51]} 43. h3 Qg8 {[%emt 0:00:39]} 44. Qf3 {[%emt 0:01:06]} Qe6 {[%emt 0:05:39]} 45. Qg4 {[%emt 0:09:06]} Rd7 {[%emt 0:05:32]} 46. h4 Qg8 {[%emt 0:02:40]} 47. Qf3 {[%emt 0:01:25]} Qxa2 {[%emt 0:04:35]} 48. b4 {[%emt 0:05:56]} Qc4 {[%emt 0:00:04]} 49. bxc5 {[%emt 0:01:56]} Qxc5 {[%emt 0:00:10]} 50. Qh5 {[%emt 0:02:56]} Rg7 {[%emt 0:05:36]} 51. Nxg7 {[%emt 0:00:27]} Kxg7 {[%emt 0:00:04]} 52. Qg4+ Kh8 {[%emt 0:00:40]} 53. Qe6 {[%emt 0:01:29]} Qxc3 {[%emt 0:01:57]} 54. Qxf6+ {[%emt 0:00:30]} Kg8 {[%emt 0:00:02]} 55. Rf2 1-0

[Event "ROU-ch Men 2018"]
[Site "Olanesti"]
[Date "2018.05.17"]
[Round "4"]
[White "Chima, Radu-Niculin"]
[Black "Pop, Alexandru"]
[Result "1/2-1/2"]
[ECO "C55"]
[WhiteElo "2095"]
[BlackElo "2302"]
[Annotator "NA"]
[PlyCount "146"]
[EventDate "2018.??.??"]
[EventType "swiss"]
[EventCountry "ROU"]
[SourceTitle "playchess.com"]
[Source "ChessBase"]
[SourceQuality "1"]
[TimeControl "40/5400+30:1800+30"]

1. e4 {[%emt 0:00:00]} e5 {[%emt 0:09:00]} 2. Nf3 {[%emt 0:00:00]} Nc6 {[%emt 0:00:03]} 3. Bc4 {[%emt 0:00:00]} Nf6 {[%emt 0:00:06]} 4. d3 {[%emt 0:00:01]} Be7 {[%emt 0:00:05]} 5. O-O {[%emt 0:00:13]} O-O {[%emt 0:00:06]} 6. Re1 {[%emt 0:00:18]} d6 {[%emt 0:00:17]} 7. a4 {[%emt 0:00:16]} Na5 {[%emt 0:00:10]} 8. Ba2 {[%emt 0:00:21] C55: Two Knights: 4 d3, 4 d4 exd4 5 e5 and Max Lange Attack} c5 {[%emt 0:00:07]} 9. Nbd2 {[%emt 0:02:02]} (9. c3 Nc6 10. Na3 a6 11. Nc2 h6 12. Ne3 Re8 13. h3 Bf8 14. Nd5 Rb8 15. Be3 Be6 {½-½ (43) Van Foreest,J (2629)-Harikrishna,P (2744) Riadh 2017}) 9... Nc6 {[%emt 0:02:29]} 10. Nc4 {[%emt 0:04:34]} Be6 {[%emt 0:02:10]} 11. h3 {[%emt 0:03:45]} a6 $146 {[%emt 0:07:23]} ({Predecessor:} 11... h6 12. c3 Re8 13. Bb1 Bf8 14. Ne3 g6 15. d4 exd4 16. cxd4 cxd4 17. Nxd4 Nxd4 18. Qxd4 {½-½ (80) Benderac,S (2373)-Blagojevic,D (2545) Cetinje 2009}) 12. Ng5 {[%emt 0:04:03]} b5 {[%emt 0:04:39]} 13. Nxe6 {[%emt 0:00:51]} fxe6 {[%emt 0:00:12]} 14. Ne3 {[%emt 0:01:33]} d5 {[%emt 0:01:17]} 15. Ng4 {[%emt 0:08:17]} Qd6 {[%emt 0:11:51]} 16. Bg5 {[%emt 0:13:58]} Rad8 {[%emt 0:15:27]} 17. axb5 {[%emt 0:00:32]} axb5 {[%emt 0:00:09]} 18. Bxf6 {[%emt 0:03:31]} Bxf6 {[%emt 0:00:50]} 19. Ne3 {[%emt 0:03:25]} Bg5 {[%emt 0:05:19]} 20. Qg4 {[%emt 0:06:13]} Bxe3 {[%emt 0:01:06]} 21. fxe3 {[%emt 0:01:08]} Ra8 {[%emt 0:05:40]} 22. c3 {[%emt 0:03:45]} Kh8 {[%emt 0:06:39]} 23. Bb3 {[%emt 0:01:25]} c4 {[%emt 0:00:48]} 24. Bc2 {[%emt 0:01:15]} d4 {[%emt 0:02:25]} 25. exd4 {[%emt 0:04:24]} (25. Rxa8 $1 $14 {keeps the upper hand.} Rxa8 26. exd4) 25... exd4 $2 {[%emt 0:00:16]} (25... Rxa1 $17 26. Rxa1 exd4) 26. e5 $15 {[%emt 0:03:46]} ({Better is} 26. Rxa8 $14 Rxa8 {[#]} 27. e5 $1 {[%mdl 512]}) 26... Qc5 {[%emt 0:13:03]} 27. Kh1 {[%emt 0:02:33]} Rxa1 {[%emt 0:01:18]} 28. Rxa1 {[%emt 0:00:11]} dxc3 {[%emt 0:03:55]} 29. bxc3 {[%emt 0:01:48]} cxd3 {[%emt 0:00:32]} 30. Bxd3 {[%emt 0:00:43]} Qxc3 {[%emt 0:00:39]} 31. Rd1 {[%emt 0:10:13]} Nxe5 {[%emt 0:00:45]} 32. Qe4 {[%emt 0:01:46]} Nxd3 {[%emt 0:00:17]} 33. Rxd3 {[%emt 0:01:03]} Qc4 {[%emt 0:03:38]} 34. Rf3 {[%emt 0:05:25]} Rc8 {[%emt 0:01:21]} 35. Qe5 {[%emt 0:02:41]} Qd5 {[%emt 0:01:25]} 36. Qc7 {[%emt 0:02:07]} Rd8 {[%emt 0:02:04]} 37. Rf7 {[%emt 0:01:47]} h6 {[%emt 0:00:43]} 38. Rxg7 {[%emt 0:02:21]} Qd1+ {[%emt 0:00:04]} 39. Kh2 {[%emt 0:00:11]} Qd6+ {[%emt 0:00:02]} 40. Qxd6 {[%emt 0:00:00]} Rxd6 {[%emt 0:00:03]} 41. Rb7 {[%emt 0:00:23]} Rd5 {[%emt 0:00:29]} 42. Rb6 {[%emt 0:02:13]} Re5 {[%emt 0:00:05]} 43. Rb7 {[%emt 0:00:43]} Kg8 {[%emt 0:00:18]} 44. Kg3 {[%emt 0:02:21]} h5 {[%emt 0:01:45]} 45. Kf4 {[%emt 0:01:18]} Rf5+ {[%emt 0:00:07]} 46. Ke4 {[%emt 0:00:17]} h4 {[%emt 0:00:38]} 47. Re7 {[%emt 0:00:41]} Rf2 {[%emt 0:02:47]} 48. Rb7 {[%emt 0:01:34]} Rb2 {[%emt 0:08:41]} 49. Ke5 {[%emt 0:03:33]} Rxg2 {[%emt 0:02:33]} 50. Kxe6 {[%emt 0:00:35]} Rb2 {[%emt 0:00:06]} 51. Kf6 {[%emt 0:00:52]} Rb4 {[%emt 0:04:17]} 52. Rb8+ {[%emt 0:00:38]} Kh7 {[%emt 0:00:06]} 53. Rb7+ {[%emt 0:00:45]} Kh6 {[%emt 0:00:04]} 54. Kf5 {[%emt 0:00:30]} Rb1 {[%emt 0:03:20]} 55. Kg4 {[%emt 0:00:45]} Kg6 {[%emt 0:00:54]} 56. Rb6+ {[%emt 0:00:20]} Kf7 {[%emt 0:00:04]} 57. Kxh4 {[%emt 0:00:21]} Ke7 {[%emt 0:00:06]} 58. Kg5 {[%emt 0:02:21]} Kd7 {[%emt 0:00:06]} 59. h4 {[%emt 0:00:17]} Kc7 {[%emt 0:00:24]} 60. Re6 {[%emt 0:00:16]} Rg1+ {[%emt 0:02:02]} 61. Kf6 {[%emt 0:00:43]} b4 {[%emt 0:00:47]} 62. Re3 {[%emt 0:00:52]} Rh1 {[%emt 0:01:46]} 63. Re4 {[%emt 0:00:35]} b3 {[%emt 0:00:17]} 64. Rc4+ {[%emt 0:00:16]} Kd6 {[%emt 0:00:11]} 65. Rb4 {[%emt 0:00:05]} Rb1 {[%emt 0:00:59]} 66. h5 {[%emt 0:01:31]} b2 {[%emt 0:00:16]} 67. h6 {[%emt 0:00:15]} Rf1+ {[%emt 0:00:11]} 68. Kg7 {[%emt 0:00:05]} Rg1+ {[%emt 0:03:20]} 69. Kf7 {[%emt 0:00:10]} b1=Q {[%emt 0:00:10]} 70. Rxb1 {[%emt 0:00:10]} Rxb1 {[%emt 0:00:03]} 71. h7 {[%emt 0:00:06]} Rh1 {[%emt 0:00:08]} 72. Kg8 {[%emt 0:00:25]} Rxh7 {[%emt 0:00:19]} 73. Kxh7 {[%emt 0:00:07]} Ke5 1/2-1/2

[Event "ROU-ch Men 2018"]
[Site "Olanesti"]
[Date "2018.05.17"]
[Round "4"]
[White "Albu, George"]
[Black "Pislariu, Stefanel-Vasilica"]
[Result "1-0"]
[ECO "D49"]
[WhiteElo "2038"]
[BlackElo "1863"]
[Annotator "NA"]
[PlyCount "71"]
[EventDate "2018.??.??"]
[EventType "swiss"]
[EventCountry "ROU"]
[SourceTitle "playchess.com"]
[Source "ChessBase"]
[SourceQuality "1"]
[TimeControl "40/5400+30:1800+30"]

1. d4 {[%emt 0:01:50]} d5 {[%emt 0:00:08]} 2. c4 {[%emt 0:00:06]} e6 {[%emt 0:00:08]} 3. Nc3 {[%emt 0:00:05]} c6 {[%emt 0:00:06]} 4. e3 {[%emt 0:00:22]} Nf6 {[%emt 0:00:09]} 5. Nf3 {[%emt 0:00:08]} Nbd7 {[%emt 0:00:12]} 6. Bd3 {[%emt 0:00:07]} dxc4 {[%emt 0:02:43]} 7. Bxc4 {[%emt 0:00:22]} b5 {[%emt 0:00:23]} 8. Bd3 {[%emt 0:00:32]} a6 {[%emt 0:00:12]} 9. e4 {[%emt 0:09:24]} c5 {[%emt 0:02:39]} 10. e5 {[%emt 0:00:10]} cxd4 {[%emt 0:01:04]} 11. Nxb5 {[%emt 0:09:10]} axb5 {[%emt 0:00:17]} 12. exf6 {[%emt 0:00:25]} gxf6 {[%emt 0:00:15] LiveBook: 253 Games} ({Don't go for} 12... Qxf6 $2 13. Bg5 $18) 13. Nxd4 {[%emt 0:08:01] D49: Semi-Slav: Meran System: Main line with 9 e4 c5 10 e5 cxd4 11 Nxb5} (13. O-O Qb6 14. Qe2 b4 15. Rd1 Bd6 16. Bb5 Bc5 17. Bf4 Ra5 18. Bd3 Bb7 19. Bg3 Bd6 20. Bxd6 Bxf3 21. Qxf3 Qxd6 22. Qb7 Ke7 {0-1 (35) Ftacnik,L (2545)-Navara,D (2720) Slovakia 2018}) 13... Qb6 $1 {[%emt 0:05:05] [#]} 14. Nb3 $146 {[%emt 0:52:53]} ({Predecessor:} 14. Be3 Bb4+ 15. Kf1 Bc5 16. Be2 b4 17. h4 Rg8 18. g3 Bb7 19. Rh2 Ke7 20. h5 Rgd8 21. Rh4 Ne5 22. Rc1 Rac8 23. Rxc5 Rxc5 24. Qe1 Ke8 25. Rf4 Nc4 26. Bxc4 Rxc4 27. Nf3 Qa6 {0-1 (27) Malakhatko,V (2517)-Sturua,Z (2565) Batumi 2002}) 14... Bb7 {[%emt 0:05:50]} 15. O-O {[%emt 0:05:28]} Rg8 {[%emt 0:04:08]} 16. g3 $1 {[%emt 0:00:07]} Bd6 {[%emt 0:02:39]} 17. Be3 {[%emt 0:03:08]} Qc7 {[%emt 0:18:25]} (17... Bxg3 $1 $11 18. hxg3 Qc6) 18. Bxb5 {[%emt 0:02:50]} Rd8 {[%emt 0:01:06]} 19. f4 $18 {[%emt 0:00:49]} Bd5 {[%emt 0:08:54]} 20. Qe2 {[%emt 0:02:01]} Ke7 {[%emt 0:06:46]} 21. Rad1 {[%emt 0:00:47]} Ba8 {[%emt 0:05:33]} 22. Nd4 {[%emt 0:00:54]} Kf8 {[%emt 0:11:15]} 23. Rc1 {[%emt 0:00:23]} Nc5 {[%emt 0:02:08]} 24. b4 {[%emt 0:00:21]} Qb7 {[%emt 0:00:18]} 25. bxc5 {[%emt 0:01:20]} Qh1+ {[%emt 0:00:09]} 26. Kf2 {[%emt 0:00:04]} Qxh2+ {[%emt 0:00:27]} 27. Ke1 {[%emt 0:00:03]} Qxg3+ {[%emt 0:00:52]} 28. Qf2 {[%emt 0:00:58]} Bc7 {[%emt 0:06:49]} 29. Qxg3 {[%emt 0:00:41]} Rxg3 {[%emt 0:00:06]} 30. Ke2 {[%emt 0:00:06]} e5 {[%emt 0:02:36]} 31. fxe5 {[%emt 0:00:28]} Bxe5 {[%emt 0:02:45]} 32. Nf5 {[%emt 0:00:06]} Rh3 {[%emt 0:01:43]} 33. c6 {[%emt 0:01:00]} Bc7 {[%emt 0:01:44]} 34. Bh6+ {[%emt 0:00:30]} Ke8 {[%emt 0:00:40]} 35. Bf4 {[%emt 0:00:57]} Rd5 {[%emt 0:01:28]} 36. Bxc7 {[%emt 0:00:17]} 1-0

[Event "ROU-ch Men 2018"]
[Site "Olanesti"]
[Date "2018.05.17"]
[Round "4"]
[White "Neagu, Liviu"]
[Black "Cotruta, Alexandru-Mihai"]
[Result "1-0"]
[ECO "A00"]
[WhiteElo "2025"]
[BlackElo "1776"]
[Annotator "NA"]
[PlyCount "81"]
[EventDate "2018.??.??"]
[EventType "swiss"]
[EventCountry "ROU"]
[SourceTitle "playchess.com"]
[Source "ChessBase"]
[SourceQuality "1"]
[TimeControl "40/5400+30:1800+30"]

1. b4 {[%emt 0:00:00]} c6 {[%emt 0:03:34]} 2. Nf3 {[%emt 0:00:00]} Qb6 {[%emt 0:00:29]} 3. a3 {[%emt 0:00:06]} a5 {[%emt 0:00:23]} 4. bxa5 {[%emt 0:01:00]} Qxa5 {[%emt 0:00:47]} 5. e3 {[%emt 0:06:17]} e5 {[%emt 0:01:18]} 6. Be2 {[%emt 0:00:36]} e4 {[%emt 0:01:43]} 7. Nd4 {[%emt 0:00:20]} Nf6 {[%emt 0:11:48]} 8. Bb2 {[%emt 0:04:20]} d5 {[%emt 0:01:44]} 9. O-O {[%emt 0:00:54]} Bd6 {[%emt 0:00:19]} 10. d3 {[%emt 0:02:50]} Qc7 {[%emt 0:04:38]} 11. h3 {[%emt 0:01:07]} Nbd7 {[%emt 0:00:57]} 12. c4 {[%emt 0:01:00]} dxc4 {[%emt 0:02:28]} 13. dxe4 {[%emt 0:02:35]} Nxe4 {[%emt 0:03:00]} 14. Bxc4 {[%emt 0:05:04]} Ne5 {[%emt 0:01:24]} 15. Be2 {[%emt 0:01:36]} O-O {[%emt 0:04:01]} 16. Qc2 {[%emt 0:02:59]} f5 {[%emt 0:08:18]} 17. Nc3 {[%emt 0:01:36]} Qe7 {[%emt 0:01:04]} 18. Nxe4 {[%emt 0:05:35]} fxe4 {[%emt 0:00:38]} 19. Qxe4 {[%emt 0:01:01]} Bd7 {[%emt 0:11:54]} 20. a4 {[%emt 0:06:15]} Qg5 {[%emt 0:08:16]} 21. f4 {[%emt 0:18:07]} Qg3 {[%emt 0:01:25]} 22. fxe5 {[%emt 0:09:30]} Bxe5 {[%emt 0:01:28]} 23. Rf3 $18 {[%emt 0:03:55]} Rxf3 {[%emt 0:02:26]} 24. Bxf3 {[%emt 0:01:04]} Bxh3 {[%emt 0:01:56]} 25. Bc3 {[%emt 0:10:40]} Rf8 {[%emt 0:04:23]} 26. Ra2 {[%emt 0:05:45]} c5 {[%emt 0:07:40]} 27. Nb5 {[%emt 0:01:11]} Qh2+ {[%emt 0:03:48]} 28. Kf1 {[%emt 0:00:07]} Bg3 {[%emt 0:03:58]} 29. Qd5+ {[%emt 0:01:34]} Kh8 {[%emt 0:01:08]} 30. gxh3 {[%emt 0:00:22]} Qh1+ {[%emt 0:03:15]} 31. Ke2 {[%emt 0:00:19]} Qg1 {[%emt 0:00:13]} 32. Kd3 {[%emt 0:03:27]} Qb1+ {[%emt 0:02:11]} 33. Ke2 {[%emt 0:01:42]} Qg1 {[%emt 0:00:21]} 34. Rb2 {[%emt 0:01:39]} c4 {[%emt 0:00:42]} 35. Nd4 {[%emt 0:01:29]} Qf2+ {[%emt 0:00:32]} 36. Kd1 {[%emt 0:00:01]} Qxe3 {[%emt 0:00:03]} 37. Qxc4 {[%emt 0:01:05]} Bf4 {[%emt 0:02:11]} 38. Bd2 {[%emt 0:00:56]} Qa3 {[%emt 0:00:32]} 39. Rxb7 {[%emt 0:00:32]} Qa1+ {[%emt 0:00:36]} 40. Kc2 {[%emt 0:00:00]} Be5 {[%emt 0:00:45]} 41. Bc3 {[%emt 0:01:42]} 1-0

[Event "ROU-ch Men 2018"]
[Site "Olanesti"]
[Date "2018.05.17"]
[Round "4"]
[White "Farcadi, Hunor"]
[Black "Ciobanu, Viorel-Adrian"]
[Result "1-0"]
[ECO "C47"]
[WhiteElo "1959"]
[BlackElo "2196"]
[Annotator "NA"]
[PlyCount "141"]
[EventDate "2018.??.??"]
[EventType "swiss"]
[EventCountry "ROU"]
[SourceTitle "playchess.com"]
[Source "ChessBase"]
[SourceQuality "1"]
[TimeControl "40/5400+30:1800+30"]

1. e4 {[%emt 0:00:33]} e5 {[%emt 0:00:15]} 2. Nf3 {[%emt 0:00:27]} Nc6 {[%emt 0:00:06]} 3. Nc3 {[%emt 0:00:35]} Nf6 {[%emt 0:00:22]} 4. a3 {[%emt 0:00:06]} d5 {[%emt 0:07:47]} 5. Bb5 {[%emt 0:00:08]} Bg4 {[%emt 0:26:25]} 6. exd5 {[%emt 0:06:55]} Nxd5 {[%emt 0:00:25]} 7. Qe2 {[%emt 0:00:42]} Bxf3 {[%emt 0:08:52]} 8. Qxf3 {[%emt 0:01:56]} Nde7 {[%emt 0:05:29]} 9. O-O {[%emt 0:11:18]} a6 {[%emt 0:05:09]} 10. Bc4 {[%emt 0:00:35]} f6 {[%emt 0:01:19]} 11. Ne4 {[%emt 0:07:42]} Nc8 {[%emt 0:11:16]} 12. c3 {[%emt 0:23:33]} Nd6 {[%emt 0:04:16]} 13. Nxd6+ {[%emt 0:03:50]} Qxd6 {[%emt 0:00:09]} 14. Qh3 {[%emt 0:01:45]} g6 $18 {[%emt 0:05:35]} (14... h5 $16) 15. d4 {[%emt 0:07:57]} f5 {[%emt 0:07:50]} 16. Bg5 {[%emt 0:05:27]} Be7 {[%emt 0:08:11]} 17. dxe5 {[%emt 0:03:36]} Qc5 {[%emt 0:00:12]} 18. Bxe7 {[%emt 0:01:18]} Nxe7 {[%emt 0:00:31]} 19. Qd3 {[%emt 0:02:40]} Rd8 {[%emt 0:02:04]} 20. Qe2 {[%emt 0:00:14]} Nd5 {[%emt 0:00:05]} 21. Rad1 {[%emt 0:03:48]} b5 {[%emt 0:03:08]} 22. Bxd5 {[%emt 0:04:02]} Rxd5 {[%emt 0:00:03]} 23. Rxd5 {[%emt 0:00:08]} Qxd5 {[%emt 0:00:03]} 24. e6 {[%emt 0:01:48]} O-O {[%emt 0:02:10]} 25. Rd1 {[%emt 0:00:17]} Qc5 {[%emt 0:00:29]} 26. e7 {[%emt 0:03:13]} Re8 {[%emt 0:00:01]} 27. Qe6+ {[%emt 0:00:05]} Kg7 {[%emt 0:00:09]} 28. Rd7 {[%emt 0:01:50]} Qb6 {[%emt 0:00:53]} 29. Qxb6 {[%emt 0:03:39]} cxb6 {[%emt 0:00:03]} 30. Kf1 {[%emt 0:00:14]} Kf7 {[%emt 0:00:10]} 31. Rb7 {[%emt 0:00:52]} Rxe7 {[%emt 0:00:25]} 32. Rxb6 {[%emt 0:00:06]} Rd7 {[%emt 0:00:44]} 33. Rxa6 {[%emt 0:02:10]} Rd2 {[%emt 0:00:05]} 34. Ra7+ {[%emt 0:00:13]} Kf6 {[%emt 0:00:34]} 35. b4 {[%emt 0:01:25]} Rc2 {[%emt 0:00:43]} 36. Rxh7 {[%emt 0:00:18]} Rxc3 {[%emt 0:00:24]} 37. Rb7 {[%emt 0:01:23]} Rxa3 {[%emt 0:00:09]} 38. g3 {[%emt 0:00:27]} f4 {[%emt 0:01:49]} 39. gxf4 {[%emt 0:00:35]} Rf3 {[%emt 0:00:09]} 40. Rb6+ {[%emt 0:00:00]} Kg7 {[%emt 0:00:18]} 41. Rxb5 {[%emt 0:01:17]} Rxf4 {[%emt 0:00:06]} 42. Kg2 {[%emt 0:00:50]} Rc4 {[%emt 0:00:14]} 43. Kg3 {[%emt 0:01:28]} Kf6 {[%emt 0:00:05]} 44. Rb6+ {[%emt 0:01:57]} Kf5 {[%emt 0:00:33]} 45. f3 {[%emt 0:00:13]} Rd4 {[%emt 0:00:13]} 46. b5 {[%emt 0:01:05]} Rb4 {[%emt 0:00:06]} 47. Rb8 {[%emt 0:02:38]} Kg5 {[%emt 0:04:15]} 48. b6 {[%emt 0:00:20]} Kf6 {[%emt 0:02:03]} 49. h4 {[%emt 0:00:48]} Kg7 {[%emt 0:00:48]} 50. f4 {[%emt 0:00:43]} Rb3+ {[%emt 0:08:31]} 51. Kg4 {[%emt 0:00:25]} Rb1 {[%emt 0:01:34]} 52. Kf3 {[%emt 0:00:40]} Rb4 {[%emt 0:06:03]} 53. Ke3 {[%emt 0:00:29]} Kh7 {[%emt 0:00:45]} 54. Kd3 {[%emt 0:02:00]} Rxf4 {[%emt 0:02:41]} 55. Kc3 {[%emt 0:00:05]} Rf1 {[%emt 0:04:44]} 56. Kc4 {[%emt 0:00:12]} Rc1+ {[%emt 0:01:23]} 57. Kb5 {[%emt 0:01:11]} Rb1+ {[%emt 0:00:06]} 58. Kc6 {[%emt 0:00:08]} Rc1+ {[%emt 0:00:03]} 59. Kb7 {[%emt 0:00:11]} Rc4 {[%emt 0:00:07]} 60. Rc8 {[%emt 0:00:54]} Rxh4 {[%emt 0:00:22]} 61. Rc5 {[%emt 0:05:26]} Rb4 {[%emt 0:03:28]} 62. Kc7 {[%emt 0:00:48]} Kh6 {[%emt 0:00:34]} 63. b7 {[%emt 0:00:04]} Rb2 {[%emt 0:00:43]} 64. b8=Q {[%emt 0:00:20]} Rxb8 {[%emt 0:00:07]} 65. Kxb8 {[%emt 0:00:07]} g5 {[%emt 0:00:05]} 66. Kc7 {[%emt 0:00:17]} Kh5 {[%emt 0:00:07]} 67. Kd6 {[%emt 0:00:15]} Kg4 {[%emt 0:01:05]} 68. Ke5 {[%emt 0:00:10]} Kf3 {[%emt 0:00:12]} 69. Rc3+ {[%emt 0:00:08]} Kf2 {[%emt 0:00:09]} 70. Kf5 {[%emt 0:00:06]} g4 71. Ke4 1-0